fUSD/lending_fUSD_20250417
["ID","MTS","AMOUNT","RATE_DAILY","PERIOD"]
[358236102,1744863045947,-151.0,0.00052054,120]
[358236103,1744863045958,-500.0,0.00052054,120]
[358236104,1744863045968,-500.0,0.00052054,120]
[358236105,1744863045982,-500.0,0.00052054,120]
[358236106,1744863045993,-500.0,0.00052054,120]
[358236107,1744863046003,-500.0,0.00052054,120]
[358236108,1744863046014,-500.0,0.00052054,120]
[358236109,1744863046024,-586.34,0.00052054,120]
[358236110,1744863046034,-500.0,0.00052054,120]
[358236111,1744863046045,-1841.18,0.00052054,120]
[358236112,1744863046056,-765.274431,0.00052054,120]
[358236113,1744863046066,-765.274431,0.00052054,120]
[358236114,1744863046076,-765.274431,0.00052054,120]
[358236115,1744863046086,-765.274431,0.00052054,120]
[358236116,1744863046096,-563.89,0.00052054,120]
[358236117,1744863046106,-151.0,0.00052054,120]
[358236118,1744863046116,-500.0,0.00052054,120]
[358236119,1744863046126,-151.0,0.00052054,120]
[358236120,1744863046136,-151.0,0.00052054,120]
[358236121,1744863046146,-151.0,0.00052054,120]
[358236122,1744863046156,-506.0250882,0.00052054,120]
[358236123,1744863046166,-500.0,0.00052054,120]
[358236124,1744863046176,-151.0,0.00052054,120]
[358236125,1744863046188,-161.458064,0.00052054,120]
[358236126,1744863046198,-553.68,0.00052054,120]
[358236127,1744863046208,-507.47700455,0.00052054,120]
[358236128,1744863046218,-2249.85,0.00052054,120]
[358236129,1744863046228,-500.0,0.00052054,120]
[358236130,1744863046238,-500.0,0.00052054,120]
[358236131,1744863046248,-151.0,0.00052054,120]
[358236132,1744863046259,-151.0,0.00052054,120]
[358236133,1744863046269,-1785.28,0.00052054,120]
[358236134,1744863046278,-151.0,0.00052054,120]
[358236135,1744863046288,-286.062366,0.00052054,120]
[358236136,1744863046298,-151.0,0.00052054,120]
[358236137,1744863046308,-500.0,0.00052054,120]
[358236138,1744863046319,-500.0,0.00052054,120]
[358236139,1744863046330,-1342.48,0.00052054,120]
[358236140,1744863046341,-577.82974581,0.00052054,120]
[358236141,1744863046352,-583.95694516,0.00052054,120]
[358236142,1744863046362,-500.0,0.00052054,120]
[358236143,1744863046372,-500.0,0.00052054,120]
[358236144,1744863046382,-500.0,0.00052054,120]
[358236145,1744863046391,-3176.65,0.00052054,120]
[358236146,1744863046402,-3176.65,0.00052054,120]
[358236147,1744863046412,-151.0,0.00052054,120]
[358236148,1744863046422,-151.0,0.00052054,120]
[358236149,1744863046432,-151.0,0.00052054,120]
[358236150,1744863046441,-151.0,0.00052054,120]
[358236151,1744863046451,-393.90192302,0.00052054,120]
[358236152,1744863046460,-539.32688674,0.00052054,120]
[358236153,1744863046470,-500.0,0.00052054,120]
[358236154,1744863046479,-500.0,0.00052054,120]
[358236155,1744863046488,-500.0,0.00052054,120]
[358236156,1744863046498,-500.0,0.00052054,120]
[358236157,1744863046507,-500.0,0.00052054,120]
[358236158,1744863046517,-502.67865612,0.00052054,120]
[358236159,1744863046526,-500.0,0.00052054,120]
[358236160,1744863046536,-500.0,0.00052054,120]
[358236161,1744863046545,-500.0,0.00052054,120]
[358236162,1744863046555,-500.0,0.00052054,120]
[358236163,1744863046565,-151.0,0.00052054,120]
[358236164,1744863046574,-151.0,0.00052054,120]
[358236165,1744863046583,-151.0,0.00052054,120]
[358236166,1744863046593,-151.0,0.00052054,120]
[358236167,1744863046603,-2532.56,0.00052054,120]
[358236168,1744863046613,-813.42,0.00052054,120]
[358236169,1744863046623,-151.0,0.00052054,120]
[358236170,1744863046633,-626.14,0.00052054,120]
[358236171,1744863046643,-151.0,0.00052054,120]
[358236172,1744863046652,-500.0,0.00052054,120]
[358236173,1744863046662,-151.0,0.00052054,120]
[358236174,1744863046672,-151.0,0.00052054,120]
[358236175,1744863046683,-151.0,0.00052054,120]
[358236176,1744863046694,-500.0,0.00052054,120]
[358236177,1744863046703,-500.0,0.00052054,120]
[358236178,1744863046714,-500.0,0.00052054,120]
[358236179,1744863046723,-500.0,0.00052054,120]
[358236180,1744863046733,-500.0,0.00052054,120]
[358236181,1744863046743,-500.0,0.00052054,120]
[358236182,1744863046754,-808.15,0.00052054,120]
[358236183,1744863046764,-500.0,0.00052054,120]
[358236184,1744863046774,-500.0,0.00052054,120]
[358236185,1744863046784,-1300.87,0.00052054,120]
[358236186,1744863046794,-502.00713616,0.00052054,90]
[358236187,1744863046804,-500.0,0.00052054,120]
[358236188,1744863046813,-151.0,0.00052054,120]
[358236189,1744863046823,-151.0,0.00052054,120]
[358236190,1744863046833,-500.0,0.00052054,120]
[358236191,1744863046843,-151.0,0.00052054,120]
[358236192,1744863046853,-151.0,0.00052054,120]
[358236193,1744863046863,-151.0,0.00052054,110]
[358236194,1744863046873,-151.0,0.00052054,110]
[358236195,1744863046883,-151.0,0.00052054,110]
[358236196,1744863046892,-513.07378412,0.00052054,120]
[358236197,1744863046902,-158.446461,0.00052054,110]
[358236198,1744863046912,-500.0,0.00052054,120]
[358236199,1744863046922,-500.0,0.00052054,120]
[358236200,1744863046934,-151.0,0.00052054,120]
[358236201,1744863046944,-151.0,0.00052054,120]
[358236202,1744863046955,-151.0,0.00052054,120]
[358236203,1744863046965,-157.503326,0.00052054,120]
[358236204,1744863046979,-690.58,0.00052054,120]
[358236205,1744863046989,-500.0,0.00052054,120]
[358236206,1744863046999,-203.273352,0.00052054,120]
[358236207,1744863047011,-500.0,0.00052054,120]
[358236208,1744863047021,-500.0,0.00052054,120]
[358236209,1744863047031,-500.0,0.00052054,120]
[358236210,1744863047041,-508.35585769,0.00052054,120]
[358236211,1744863047053,-1000.0,0.00052054,120]
[358236212,1744863047063,-4899.76,0.00052054,120]
[358236213,1744863047074,-500.0,0.00052054,120]
[358236214,1744863047083,-500.0,0.00052054,120]
[358236215,1744863047093,-500.0,0.00052054,120]
[358236216,1744863047103,-553.70326164,0.00052054,120]
[358236217,1744863047113,-500.0,0.00052054,120]
[358236218,1744863047123,-507.52433325,0.00052054,120]
[358236219,1744863047133,-500.0,0.00052054,120]
[358236220,1744863047143,-500.0,0.00052054,120]
[358236221,1744863047153,-168.462309,0.00052054,120]
[358236222,1744863047163,-500.0,0.00052054,120]
[358236223,1744863047173,-503.42595301,0.00052054,120]
[358236224,1744863047184,-463.68675938,0.00052054,120]
[358236225,1744863047194,-503.9122892,0.00052054,120]
[358236226,1744863047204,-500.0,0.00052054,120]
[358236227,1744863047215,-500.0,0.00052054,120]
[358236228,1744863047225,-530.41871699,0.00052054,120]
[358236229,1744863047236,-500.0,0.00052054,120]
[358236230,1744863047246,-500.0,0.00052054,120]
[358236231,1744863047518,-156.987081,0.00052054,120]
[358236232,1744863047528,-500.0,0.00052054,120]
[358236233,1744863047537,-500.0,0.00052054,120]
[358236234,1744863047546,-508.1890735,0.00052054,120]
[358236235,1744863047556,-500.0,0.00052054,120]
[358236236,1744863047565,-500.0,0.00052054,120]
[358236237,1744863047574,-500.0,0.00052054,120]
[358236238,1744863047584,-510.07554754,0.00052054,120]
[358236239,1744863047594,-554.78659122,0.00052054,120]
[358236240,1744863047603,-500.0,0.00052054,120]
[358236241,1744863047612,-266.39536749,0.00052054,120]
[358236242,1744863047622,-568.55443127,0.00052054,120]
[358236243,1744863047631,-1041.12,0.00052054,120]
[358236244,1744863047640,-500.0,0.00052054,120]
[358236245,1744863047650,-182.34298523,0.00052054,120]
[358236246,1744863047659,-500.0,0.00052054,120]
[358236247,1744863047668,-510.35502275,0.00052054,120]
[358236248,1744863047678,-500.0,0.00052054,120]
[358236249,1744863047690,-513.16022116,0.00052054,120]
[358236250,1744863047700,-500.0,0.00052054,120]
[358236251,1744863047709,-500.0,0.00052054,120]
[358236252,1744863047719,-738.01,0.00052054,120]
[358236253,1744863047728,-500.0,0.00052054,120]
[358236254,1744863047738,-577.8255696,0.00052054,120]
[358236255,1744863047750,-569.03,0.00052054,120]
[358236256,1744863047759,-551.77,0.00052054,120]
[358236257,1744863047769,-531.07391024,0.00052054,120]
[358236258,1744863047779,-516.02421195,0.00052054,120]
[358236259,1744863047788,-500.0,0.00052054,120]
[358236260,1744863047798,-500.0,0.00052054,120]
[358236261,1744863047807,-514.29067209,0.00052054,120]
[358236262,1744863047817,-500.0,0.00052054,120]
[358236263,1744863047827,-500.0,0.00052054,120]
[358236264,1744863047836,-500.0,0.00052054,120]
[358236265,1744863047845,-500.0,0.00052054,120]
[358236266,1744863047855,-500.0,0.00052054,120]
[358236267,1744863047864,-500.0,0.00052054,120]
[358236268,1744863047874,-500.0,0.00052054,120]
[358236269,1744863047884,-1834.91,0.00052054,120]
[358236270,1744863047894,-502.32024447,0.00052054,120]
[358236271,1744863047906,-500.0,0.00052054,120]
[358236272,1744863047916,-586.91283386,0.00052054,120]
[358236273,1744863047925,-500.0,0.00052054,120]
[358236274,1744863047935,-500.0,0.00052054,120]
[358236275,1744863047945,-505.06725915,0.00052054,120]
[358236276,1744863047955,-151.0,0.00052054,120]
[358236277,1744863047964,-151.0,0.00052054,120]
[358236278,1744863047975,-151.0,0.00052054,120]
[358236279,1744863047985,-500.0,0.00052054,120]
[358236280,1744863047995,-1169.84,0.00052054,120]
[358236281,1744863048006,-500.0,0.00052054,120]
[358236282,1744863048015,-500.0,0.00052054,120]
[358236283,1744863048026,-173.49669189,0.00052054,120]
[358236284,1744863048036,-500.0,0.00052054,120]
[358236285,1744863048045,-1265.78,0.00052054,120]
[358236286,1744863048055,-151.0,0.00052054,120]
[358236287,1744863048065,-500.0,0.00052054,120]
[358236288,1744863048075,-151.0,0.00052054,120]
[358236289,1744863048086,-152.495799,0.00052054,120]
[358236290,1744863048095,-500.0,0.00052054,120]
[358236291,1744863048106,-500.0,0.00052054,120]
[358236292,1744863048116,-1688.24,0.00052054,120]
[358236293,1744863048125,-689.58,0.00052054,120]
[358236294,1744863048134,-1329.94,0.00052054,120]
[358236295,1744863048143,-500.0,0.00052054,120]
[358236296,1744863048154,-500.0,0.00052054,120]
[358236297,1744863048164,-500.0,0.00052054,120]
[358236298,1744863048173,-1403.01,0.00052054,120]
[358236299,1744863048185,-500.0,0.00052054,2]
[358236300,1744863048194,-500.0,0.00052054,120]
[358236301,1744863048203,-510.68163171,0.00052054,120]
[358236302,1744863048214,-500.0,0.00052054,120]
[358236303,1744863048223,-151.0,0.00052054,120]
[358236304,1744863048233,-503.52149542,0.00052054,120]
[358236305,1744863048242,-500.0,0.00052054,120]
[358236306,1744863048252,-1208.52,0.00052054,120]
[358236307,1744863048261,-156.86,0.00052054,120]
[358236308,1744863048271,-500.0,0.00052054,120]
[358236309,1744863048281,-156.86,0.00052054,120]
[358236310,1744863048291,-156.86,0.00052054,120]
[358236311,1744863048300,-156.86,0.00052054,120]
[358236312,1744863048310,-920.22,0.00052054,120]
[358236313,1744863048320,-151.0,0.00052054,120]
[358236314,1744863048330,-545.1,0.00052054,14]
[358236315,1744863048339,-151.0,0.00052054,120]
[358236316,1744863048349,-500.0,0.00052054,120]
[358236317,1744863048359,-151.0,0.00052054,120]
[358236318,1744863048369,-500.0,0.00052054,120]
[358236319,1744863048379,-151.0,0.00052054,120]
[358236320,1744863048389,-500.0,0.00052054,120]
[358236321,1744863048399,-156.86,0.00052054,120]
[358236322,1744863048408,-156.86,0.00052054,120]
[358236323,1744863048418,-156.86,0.00052054,120]
[358236324,1744863048428,-156.86,0.00052054,120]
[358236325,1744863048439,-500.0,0.00052054,120]
[358236326,1744863048449,-151.0,0.00052054,120]
[358236327,1744863048458,-507.03851591,0.00052054,120]
[358236328,1744863048468,-596.02058482,0.00052054,120]
[358236329,1744863048477,-151.0,0.00052054,120]
[358236330,1744863048487,-151.0,0.00052054,120]
[358236331,1744863048496,-509.61933992,0.00052054,120]
[358236332,1744863048506,-151.0,0.00052054,120]
[358236333,1744863048515,-500.0,0.00052054,120]
[358236334,1744863048525,-500.0,0.00052054,120]
[358236335,1744863048534,-500.0,0.00052054,120]
[358236336,1744863048544,-500.0,0.00052054,120]
[358236337,1744863048553,-1306.46,0.00052054,35]
[358236338,1744863048563,-500.0,0.00052054,120]
[358236339,1744863048572,-621.82,0.00052054,120]
[358236340,1744863048582,-500.0,0.00052054,120]
[358236341,1744863048591,-500.0,0.00052054,120]
[358236342,1744863048602,-507.84848916,0.00052054,120]
[358236343,1744863048611,-1529.43,0.00052054,120]
[358236344,1744863048621,-585.94,0.00052054,120]
[358236345,1744863048631,-500.0,0.00052054,120]
[358236346,1744863048640,-151.0,0.00052054,120]
[358236347,1744863048650,-151.0,0.00052054,120]
[358236348,1744863048659,-500.0,0.00052054,120]
[358236349,1744863048669,-151.0,0.00052054,120]
[358236350,1744863048678,-500.0,0.00052054,120]
[358236351,1744863048688,-1441.43,0.00052054,120]
[358236352,1744863048698,-501.39636854,0.00052054,120]
[358236353,1744863048708,-500.0,0.00052054,120]
[358236354,1744863048718,-500.0,0.00052054,120]
[358236355,1744863048728,-500.0,0.00052054,120]
[358236356,1744863048737,-500.0,0.00052054,120]
[358236357,1744863048747,-500.0,0.00052054,120]
[358236358,1744863048758,-500.0,0.00052054,120]
[358236359,1744863048767,-500.0,0.00052054,120]
[358236360,1744863048777,-518.271579,0.00052054,120]
[358236361,1744863048786,-500.0,0.00052054,120]
[358236362,1744863048796,-500.0,0.00052054,120]
[358236363,1744863048806,-518.271579,0.00052054,120]
[358236364,1744863048815,-518.271579,0.00052054,120]
[358236365,1744863048825,-504.31705053,0.00052054,120]
[358236366,1744863048835,-880.05,0.00052054,120]
[358236367,1744863048844,-500.0,0.00052054,120]
[358236368,1744863048854,-500.0,0.00052054,120]
[358236369,1744863048863,-518.271579,0.00052054,120]
[358236370,1744863048873,-500.0,0.00052054,14]
[358236371,1744863048882,-518.271579,0.00052054,120]
[358236372,1744863048892,-550.86232952,0.00052054,120]
[358236373,1744863048901,-518.271579,0.00052054,120]
[358236374,1744863048911,-598.91,0.00052054,120]
[358236375,1744863048920,-500.0,0.00052054,120]
[358236376,1744863048929,-500.0,0.00052054,120]
[358236377,1744863048939,-500.0,0.00052054,120]
[358236378,1744863048948,-505.24034728,0.00052054,120]
[358236379,1744863048958,-1235.75,0.00052054,120]
[358236380,1744863048967,-500.0,0.00052054,120]
[358236381,1744863048981,-522.4,0.00052054,120]
[358236382,1744863048992,-500.0,0.00052054,120]
[358236383,1744863049001,-500.0,0.00052054,120]
[358236384,1744863049011,-938.67,0.00052054,120]
[358236385,1744863049021,-552.06,0.00052054,120]
[358236386,1744863049031,-500.0,0.00052054,120]
[358236387,1744863049041,-500.0,0.00052054,120]
[358236388,1744863049051,-500.0,0.00052054,120]
[358236389,1744863049061,-500.0,0.00052054,120]
[358236390,1744863049070,-1108.49,0.00052054,120]
[358236391,1744863049080,-500.0,0.00052054,120]
[358236392,1744863049090,-500.0,0.00052054,120]
[358236393,1744863049100,-500.0,0.00052054,120]
[358236394,1744863049110,-500.0,0.00052054,120]
[358236395,1744863049120,-519.9414459,0.00052054,120]
[358236396,1744863049130,-500.0,0.00052054,120]
[358236397,1744863049140,-869.49,0.00052054,120]
[358236398,1744863049150,-500.0,0.00052054,120]
[358236399,1744863049160,-934.44,0.00052054,120]
[358236400,1744863049169,-500.0,0.00052054,120]
[358236401,1744863049179,-500.0,0.00052054,120]
[358236402,1744863049189,-500.0,0.00052054,120]
[358236403,1744863049198,-500.0,0.00052054,120]
[358236404,1744863049208,-500.0,0.00052054,120]
[358236405,1744863049217,-500.0,0.00052054,120]
[358236406,1744863049226,-555.05,0.00052054,120]
[358236407,1744863049236,-344.10063723,0.00052054,120]
[358236408,1744863049246,-499.40560064,0.00052054,120]
[358236409,1744863049255,-1769.5,0.00052054,120]
[358236410,1744863049265,-811.99,0.00052054,120]
[358236411,1744863049275,-500.0,0.00052054,120]
[358236412,1744863049284,-500.0,0.00052054,120]
[358236413,1744863049294,-500.0,0.00052054,120]
[358236414,1744863049304,-1318.09,0.00052054,120]
[358236415,1744863049313,-500.0,0.00052054,120]
[358236416,1744863049323,-500.0,0.00052054,120]
[358236417,1744863049333,-500.0,0.00052054,120]
[358236418,1744863049342,-660.9,0.00052054,120]
[358236419,1744863049352,-500.0,0.00052054,120]
[358236420,1744863049362,-500.0,0.00052054,120]
[358236421,1744863049371,-500.0,0.00052054,120]
[358236422,1744863049382,-958.01,0.00052054,120]
[358236423,1744863049392,-451.46745174,0.00052054,120]
[358236424,1744863049402,-500.0,0.00052054,120]
[358236425,1744863049411,-6947.03,0.00052054,120]
[358236426,1744863049421,-500.0,0.00052054,120]
[358236427,1744863049431,-495.0,0.00052054,120]
[358236428,1744863049440,-1211.69,0.00052054,120]
[358236429,1744863049451,-500.0,0.00052054,120]
[358236430,1744863049461,-500.0,0.00052054,120]
[358236431,1744863049470,-500.0,0.00052054,120]
[358236432,1744863049481,-500.0,0.00052054,120]
[358236433,1744863049491,-500.0,0.00052054,120]
[358236434,1744863049500,-824.74,0.00052054,120]
[358236435,1744863049510,-500.0,0.00052054,120]
[358236436,1744863049519,-500.0,0.00052054,120]
[358236437,1744863049529,-206.351618,0.00052054,120]
[358236438,1744863049539,-206.351618,0.00052054,120]
[358236439,1744863049548,-206.351618,0.00052054,120]
[358236440,1744863049557,-667.35,0.00052054,120]
[358236441,1744863049567,-527.24,0.00052054,120]
[358236442,1744863049576,-1734.77,0.00052054,120]
[358236443,1744863049585,-741.06905329,0.00052054,2]
[358236444,1744863049595,-291.439066,0.00052054,120]
[358236445,1744863049604,-291.439066,0.00052054,120]
[358236446,1744863049615,-206.351618,0.00052054,120]
[358236447,1744863049624,-291.439066,0.00052054,120]
[358236448,1744863049634,-206.351618,0.00052054,120]
[358236449,1744863049645,-291.439066,0.00052054,120]
[358236450,1744863049655,-352.46367318,0.00052054,120]
[358236451,1744863049664,-1388.98,0.00052054,120]
[358236452,1744863049674,-206.351618,0.00052054,120]
[358236453,1744863049685,-500.0,0.00052054,120]
[358236454,1744863049696,-599.27,0.00052054,120]
[358236455,1744863049705,-291.439066,0.00052054,120]
[358236456,1744863049713,-291.439066,0.00052054,120]
[358236457,1744863049721,-513.58780085,0.00052054,120]
[358236458,1744863049730,-500.0,0.00052054,120]
[358236459,1744863049740,-151.0,0.00052054,120]
[358236460,1744863049750,-291.439066,0.00052054,120]
[358236461,1744863049760,-151.0,0.00052054,120]
[358236462,1744863049769,-151.0,0.00052054,120]
[358236463,1744863049779,-291.439066,0.00052054,120]
[358236464,1744863049788,-151.0,0.00052054,120]
[358236465,1744863049797,-151.0,0.00052054,120]
[358236466,1744863049807,-151.0,0.00052054,120]
[358236467,1744863049818,-151.0,0.00052054,120]
[358236468,1744863049828,-1785.03,0.00052054,120]
[358236469,1744863049838,-1120.58,0.00052054,120]
[358236470,1744863049846,-637.82374794,0.00052054,120]
[358236471,1744863049856,-151.0,0.00052054,120]
[358236472,1744863049865,-500.0,0.00052054,120]
[358236473,1744863049944,-151.0,0.00052054,120]
[358236474,1744863049954,-151.0,0.00052054,120]
[358236475,1744863049963,-1617.79,0.00052054,120]
[358236476,1744863049976,-500.0,0.00052054,120]
[358236477,1744863049988,-500.0,0.00052054,120]
[358236478,1744863050000,-151.0,0.00052054,120]
[358236479,1744863050010,-151.0,0.00052054,120]
[358236480,1744863050021,-151.0,0.00052054,120]
[358236481,1744863050031,-568.13,0.00052054,120]
[358236482,1744863050040,-500.0,0.00052054,120]
[358236483,1744863050050,-500.0,0.00052054,120]
[358236484,1744863050061,-511.94337438,0.00052054,120]
[358236485,1744863050070,-584.62,0.00052054,120]
[358236486,1744863050080,-500.0,0.00052054,120]
[358236487,1744863050090,-511.47,0.00052054,120]
[358236488,1744863050099,-728.35,0.00052054,120]
[358236489,1744863050109,-151.0,0.00052054,120]
[358236490,1744863050118,-157.952697,0.00052054,120]
[358236491,1744863050127,-500.0,0.00052054,120]
[358236492,1744863050136,-1669.17,0.00052054,120]
[358236493,1744863050145,-769.98,0.00052054,120]
[358236494,1744863050154,-500.0,0.00052054,120]
[358236495,1744863050162,-500.0,0.00052054,120]
[358236496,1744863050170,-2362.56,0.00052054,120]
[358236497,1744863050177,-500.0,0.00052054,120]
[358236498,1744863050186,-1236.8,0.00052054,120]
[358236499,1744863050194,-500.0,0.00052054,120]
[358236500,1744863050203,-811.89,0.00052054,120]
[358236501,1744863050211,-508.48208423,0.00052054,120]
[358236502,1744863050220,-500.0,0.00052054,120]
[358236503,1744863050229,-2032.87,0.00052054,120]
[358236504,1744863050238,-500.0,0.00052054,120]
[358236505,1744863050247,-500.0,0.00052054,120]
[358236506,1744863050256,-541.93160792,0.00052054,120]
[358236507,1744863050266,-1070.77,0.00052054,120]
[358236508,1744863050275,-542.73,0.00052054,120]
[358236509,1744863050284,-1724.25,0.00052054,120]
[358236510,1744863050293,-515.10553339,0.00052054,120]
[358236511,1744863050303,-1084.31,0.00052054,30]
[358236512,1744863050312,-2202.75,0.00052054,120]
[358236513,1744863050321,-510.55353114,0.00052054,120]
[358236514,1744863050330,-500.0,0.00052054,120]
[358236515,1744863050340,-513.18895252,0.00052054,120]
[358236516,1744863050349,-500.0,0.00052054,120]
[358236517,1744863050359,-512.62016936,0.00052054,120]
[358236518,1744863050370,-620.1500716,0.00052054,120]
[358236519,1744863050379,-500.0,0.00052054,30]
[358236520,1744863050388,-636.901357,0.00052054,120]
[358236521,1744863050397,-500.0,0.00052054,120]
[358236522,1744863050406,-636.901357,0.00052054,120]
[358236523,1744863050415,-636.901357,0.00052054,120]
[358236524,1744863050424,-500.0,0.00052054,120]
[358236525,1744863050433,-151.0,0.00052054,120]
[358236526,1744863050442,-500.0,0.00052054,120]
[358236527,1744863050451,-564.57,0.00052054,120]
[358236528,1744863050461,-151.0,0.00052054,120]
[358236529,1744863050470,-199.582184,0.00052054,120]
[358236530,1744863050480,-151.0,0.00052054,120]
[358236531,1744863050489,-1643.92,0.00052054,120]
[358236532,1744863050499,-151.0,0.00052054,120]
[358236533,1744863050509,-151.0,0.00052054,120]
[358236534,1744863050519,-500.0,0.00052054,120]
[358236535,1744863050529,-151.0,0.00052054,120]
[358236536,1744863050540,-636.901357,0.00052054,120]
[358236537,1744863050549,-636.901357,0.00052054,120]
[358236538,1744863050560,-851.47,0.00052054,120]
[358236539,1744863050570,-636.901357,0.00052054,120]
[358236540,1744863050580,-500.0,0.00052054,120]
[358236541,1744863050590,-500.0,0.00052054,120]
[358236542,1744863050600,-705.65,0.00052054,120]
[358236543,1744863050610,-151.0,0.00052054,120]
[358236544,1744863050619,-155.459609,0.00052054,120]
[358236545,1744863050629,-500.0,0.00052054,120]
[358236546,1744863050638,-500.0,0.00052054,120]
[358236547,1744863050647,-2014.98,0.00052054,120]
[358236548,1744863050657,-597.47597344,0.00052054,120]
[358236549,1744863050666,-673.3,0.00052054,120]
[358236550,1744863050676,-581.36,0.00052054,120]
[358236551,1744863050686,-500.0,0.00052054,120]
[358236552,1744863050697,-500.0,0.00052054,120]
[358236553,1744863050707,-500.0,0.00052054,120]
[358236554,1744863050716,-615.28,0.00052054,120]
[358236555,1744863050726,-789.08,0.00052054,120]
[358236556,1744863050735,-500.0,0.00052054,120]
[358236557,1744863050744,-1320.04,0.00052054,120]
[358236558,1744863050753,-508.124078,0.00052054,120]
[358236559,1744863050762,-1492.9,0.00052054,120]
[358236560,1744863050772,-721.03,0.00052054,120]
[358236561,1744863050781,-500.0,0.00052054,120]
[358236562,1744863050790,-1491.79,0.00052054,120]
[358236563,1744863050799,-500.0,0.00052054,120]
[358236564,1744863050808,-500.0,0.00052054,120]
[358236565,1744863050816,-500.0,0.00052054,120]
[358236566,1744863050825,-635.12,0.00052054,120]
[358236567,1744863050835,-500.0,0.00052054,120]
[358236568,1744863050843,-500.0,0.00052054,120]
[358236569,1744863050852,-600.23,0.00052054,120]
[358236570,1744863050861,-500.0,0.00052054,120]
[358236571,1744863050870,-1288.52,0.00052054,120]
[358236572,1744863050879,-500.0,0.00052054,120]
[358236573,1744863050888,-587.97,0.00052054,120]
[358236574,1744863050898,-544.28110448,0.00052054,120]
[358236575,1744863050907,-500.0,0.00052054,120]
[358236576,1744863050916,-500.0,0.00052054,120]
[358236577,1744863050925,-500.0,0.00052054,120]
[358236578,1744863050935,-500.0,0.00052054,120]
[358236579,1744863050944,-500.0,0.00052054,120]
[358236580,1744863050954,-500.0,0.00052054,120]
[358236581,1744863050965,-500.0,0.00052054,120]
[358236582,1744863050976,-500.0,0.00052054,120]
[358236583,1744863050987,-500.0,0.00052054,120]
[358236584,1744863050997,-500.0,0.00052054,120]
[358236585,1744863051008,-500.0,0.00052054,120]
[358236586,1744863051018,-652.87,0.00052054,120]
[358236587,1744863051027,-500.0,0.00052054,120]
[358236588,1744863051037,-500.0,0.00052054,120]
[358236589,1744863051047,-500.0,0.00052054,120]
[358236590,1744863051058,-500.0,0.00052054,120]
[358236591,1744863051067,-500.0,0.00052054,120]
[358236592,1744863051076,-1618.93,0.00052054,120]
[358236593,1744863051085,-151.0,0.00052054,120]
[358236594,1744863051095,-300.0,0.00052054,120]
[358236595,1744863051104,-151.0,0.00052054,120]
[358236596,1744863051114,-1373.09,0.00052054,120]
[358236597,1744863051123,-151.0,0.00052054,120]
[358236598,1744863051132,-500.0,0.00052054,120]
[358236599,1744863051142,-151.0,0.00052054,120]
[358236600,1744863051152,-500.0,0.00052054,120]
[358236601,1744863051161,-1402.0,0.00052054,120]